fUSD/lending_fUSD_20260529
["ID","MTS","AMOUNT","RATE_DAILY","PERIOD"]
[423286413,1780026658000,-1400.23,0.00029029,30]
[423286411,1780026658000,-1400.23,0.00029024,30]
[423286415,1780026658000,-1400.23,0.00029033,30]
[423286414,1780026658000,-1400.23,0.00029031,30]
[423286416,1780026658000,-1400.23,0.00029035,30]
[423286419,1780026658000,-1400.23,0.00029039,30]
[423286423,1780026658000,-728.0,0.00029045,120]
[423286418,1780026658000,-1400.23,0.00029037,30]
[423286424,1780026658000,-1400.23,0.00029047,30]
[423286421,1780026658000,-1400.23,0.00029043,30]
[423286417,1780026658000,-485.88774607,0.00029037,2]
[423286422,1780026658000,-1400.23,0.00029045,30]
[423286420,1780026658000,-1400.23,0.00029041,30]
[423286426,1780026658000,-1400.23,0.00029051,30]
[423286427,1780026658000,-1400.23,0.00029053,30]
[423286428,1780026658000,-1400.23,0.00029055,30]
[423286429,1780026658000,-1400.23,0.00029057,30]
[423286434,1780026658000,-4321.0,0.00029067,120]
[423286431,1780026658000,-1400.23,0.00029061,30]
[423286437,1780026658000,-1400.23,0.00029069,30]
[423286432,1780026658000,-1400.23,0.00029063,30]
[423286435,1780026658000,-178.20382452,0.00029067,30]
[423286474,1780026658000,-644.79446245,0.00029354,2]
[423286410,1780026658000,-1400.23,0.00029022,30]
[423286470,1780026658000,-6580.74,0.000293,7]
[423286500,1780026658000,-437.0,0.00029677,120]
[423286504,1780026658000,-1000.0,0.000297,7]
[423286501,1780026658000,-163.0,0.0002968,120]
[423286503,1780026658000,-167.0,0.00029693,120]
[423286502,1780026658000,-243.0,0.00029685,120]
[423286511,1780026658000,-3749.0,0.0002978,30]
[423286510,1780026658000,-1131.0,0.0002978,30]
[423286509,1780026658000,-1198.0,0.0002978,30]
[423286506,1780026658000,-500.0,0.00029751,120]
[423286507,1780026658000,-3978.0,0.0002978,30]
[423286505,1780026658000,-167.0,0.00029739,120]
[423286508,1780026658000,-3624.0,0.0002978,30]
[423286523,1780026658000,-1775.187622,0.00029805,7]
[423286513,1780026658000,-2007.0,0.00029794,30]
[423286512,1780026658000,-1566.0,0.00029794,30]
[423286521,1780026658000,-2729.0,0.00029805,30]
[423286514,1780026658000,-1028.0,0.00029797,7]
[423286518,1780026658000,-1371.0,0.00029805,30]
[423286520,1780026658000,-5630.0,0.00029805,30]
[423286516,1780026658000,-405.0,0.000298,120]
[423286522,1780026658000,-727.0,0.00029805,30]
[423286515,1780026658000,-2332.95,0.000298,14]
[423286519,1780026658000,-1220.0,0.00029805,30]
[423286517,1780026658000,-306.0,0.00029802,120]
[423286524,1780026658000,-1775.187622,0.00029805,7]
[423286525,1780026658000,-1775.187622,0.00029805,7]
[423286466,1780026658000,-200.0,0.00029222,2]
[423286494,1780026658000,-167.0,0.00029562,2]
[423286495,1780026658000,-173.0,0.00029573,120]
[423286526,1780026658000,-1775.187622,0.00029805,7]
[423286497,1780026658000,-180.0,0.00029647,4]
[423286463,1780026658000,-176.0,0.000292,120]
[423286465,1780026658000,-200.0,0.00029222,2]
[423286467,1780026658000,-711.47953175,0.00029233,2]
[423286468,1780026658000,-530.0,0.00029249,120]
[423286472,1780026658000,-152.0,0.00029333,19]
[423286473,1780026658000,-176.0,0.00029346,120]
[423286471,1780026658000,-3699.58,0.000293,7]
[423286469,1780026658000,-371.0,0.00029294,120]
[423286492,1780026658000,-948.0,0.0002952,6]
[423286481,1780026658000,-178.77941433,0.00029452,30]
[423286478,1780026658000,-546.0,0.00029392,120]
[423286482,1780026658000,-195.7,0.0002948,120]
[423286480,1780026658000,-150.0,0.00029449,7]
[423286479,1780026658000,-2332.95,0.000294,14]
[423286476,1780026658000,-1115.0,0.00029369,120]
[423286487,1780026658000,-1000.0,0.000295,2]
[423286485,1780026658000,-267.0,0.00029493,120]
[423286498,1780026658000,-222.0,0.00029649,120]
[423286496,1780026658000,-500.0,0.00029626,18]
[423286490,1780026658000,-181.46691703,0.000295,2]
[423286488,1780026658000,-1510.970504,0.000295,2]
[423286491,1780026658000,-181.46691703,0.000295,2]
[423286493,1780026658000,-188.44606373,0.0002955,2]
[423286489,1780026658000,-181.46691704,0.000295,2]
[423286483,1780026658000,-2000.0,0.00029485,7]
[423286486,1780026658000,-160.0,0.000295,120]
[423286484,1780026658000,-187.0,0.00029493,120]
[423286477,1780026658000,-780.0,0.00029383,120]
[423286499,1780026658000,-162.0,0.00029672,120]
[423286566,1780026659000,-241.13361198,0.00029846,7]
[423286565,1780026659000,-350.09572379,0.00029846,7]
[423286560,1780026659000,-364.95955319,0.00029846,2]
[423286570,1780026659000,-305.49452106,0.00029846,7]
[423286569,1780026659000,-340.8236082,0.00029846,7]
[423286561,1780026659000,-151.01290472,0.00029846,7]
[423286563,1780026659000,-231.85378954,0.00029846,7]
[423286564,1780026659000,-385.05845463,0.00029846,7]
[423286559,1780026659000,-656.71112414,0.00029846,7]
[423286557,1780026659000,-375.28593875,0.00029846,7]
[423286568,1780026659000,-380.66181989,0.00029846,7]
[423286567,1780026659000,-404.50989122,0.00029846,7]
[423286592,1780026659000,-354.70690029,0.00029848,7]
[423286571,1780026659000,-328.66708291,0.00029846,7]
[423286575,1780026659000,-382.23955748,0.00029846,7]
[423286582,1780026659000,-417.67385008,0.00029848,7]
[423286574,1780026659000,-168.69000495,0.00029846,7]
[423286578,1780026659000,-174.11467666,0.00029848,7]
[423286573,1780026659000,-344.36092522,0.00029846,7]
[423286572,1780026659000,-394.28971165,0.00029846,7]
[423286579,1780026659000,-306.88262031,0.00029848,7]
[423286576,1780026659000,-300.99596558,0.00029848,7]
[423286580,1780026659000,-330.57567857,0.00029848,7]
[423286577,1780026659000,-306.04529791,0.00029848,7]
[423286581,1780026659000,-242.27716993,0.00029848,7]
[423286554,1780026659000,-531.09117741,0.00029846,7]
[423286562,1780026659000,-317.24563307,0.00029846,7]
[423286556,1780026659000,-328.39172592,0.00029846,7]
[423286542,1780026659000,-301.087025,0.00029805,7]
[423286553,1780026659000,-629.40177097,0.00029846,7]
[423286593,1780026659000,-200.21566514,0.00029848,7]
[423286533,1780026659000,-1348.007108,0.00029805,7]
[423286534,1780026659000,-1348.007108,0.00029805,7]
[423286529,1780026659000,-210.674048,0.00029805,7]
[423286527,1780026659000,-210.674048,0.00029805,7]
[423286530,1780026659000,-210.674048,0.00029805,7]
[423286535,1780026659000,-4101.394339,0.00029805,7]
[423286528,1780026659000,-210.674048,0.00029805,7]
[423286532,1780026659000,-1348.007108,0.00029805,7]
[423286531,1780026659000,-1348.007108,0.00029805,7]
[423286537,1780026659000,-4101.394339,0.00029805,7]
[423286547,1780026659000,-3141.402971,0.00029805,7]
[423286558,1780026659000,-303.96189977,0.00029846,7]
[423286536,1780026659000,-4101.394339,0.00029805,7]
[423286538,1780026659000,-4101.394339,0.00029805,7]
[423286541,1780026659000,-301.087025,0.00029805,7]
[423286539,1780026659000,-301.087025,0.00029805,7]
[423286544,1780026659000,-3141.402971,0.00029805,7]
[423286546,1780026659000,-3141.402971,0.00029805,7]
[423286543,1780026659000,-151.0,0.00029805,7]
[423286545,1780026659000,-151.0,0.00029805,7]
[423286548,1780026659000,-3141.402971,0.00029805,7]
[423286550,1780026659000,-347.83356103,0.00029835,7]
[423286555,1780026659000,-713.56186294,0.00029846,7]
[423286552,1780026659000,-384.03782655,0.00029845,7]
[423286549,1780026659000,-372.86723845,0.00029825,7]
[423286540,1780026659000,-301.087025,0.00029805,7]
[423286584,1780026659000,-185.27180721,0.00029848,2]
[423286551,1780026659000,-361.70800942,0.00029835,7]
[423286585,1780026659000,-354.02749078,0.00029848,7]
[423286617,1780026659000,-4419.815268,0.00029848,7]
[423286616,1780026659000,-4419.815268,0.00029848,7]
[423286621,1780026659000,-674.088751,0.00029848,7]
[423286623,1780026659000,-1298.758075,0.00029848,7]
[423286624,1780026659000,-1298.758075,0.00029848,7]
[423286625,1780026659000,-1906.742747,0.00029848,7]
[423286630,1780026659000,-151.0,0.00029848,7]
[423286627,1780026659000,-1906.742747,0.00029848,7]
[423286632,1780026659000,-286.484303,0.00029848,7]
[423286622,1780026659000,-1298.758075,0.00029848,7]
[423286626,1780026659000,-1298.758075,0.00029848,7]
[423286633,1780026659000,-1213.0,0.00029849,120]
[423286631,1780026659000,-151.0,0.00029848,7]
[423286628,1780026659000,-1906.742747,0.00029848,7]
[423286629,1780026659000,-1906.742747,0.00029848,7]
[423286635,1780026659000,-214.0,0.00029852,120]
[423286634,1780026659000,-167.0,0.00029852,120]
[423286637,1780026659000,-373.74903797,0.00029864,5]
[423286638,1780026659000,-152.92019405,0.00029864,5]
[423286636,1780026659000,-372.14270477,0.00029858,7]
[423286639,1780026659000,-338.82137199,0.00029877,7]
[423286643,1780026659000,-174.47523396,0.00029881,7]
[423286642,1780026659000,-152.55379499,0.00029877,7]
[423286641,1780026659000,-353.66128442,0.00029877,7]
[423286644,1780026659000,-330.04736597,0.00029881,7]
[423286645,1780026659000,-304.56936387,0.00029881,7]
[423286594,1780026659000,-414.91976869,0.00029848,7]
[423286615,1780026659000,-4419.815268,0.00029848,7]
[423286618,1780026659000,-674.088751,0.00029848,7]
[423286640,1780026659000,-195.09795569,0.00029877,7]
[423286611,1780026659000,-1154.137718,0.00029848,7]
[423286612,1780026659000,-667.030463,0.00029848,7]
[423286595,1780026659000,-324.07413425,0.00029848,7]
[423286583,1780026659000,-411.62118709,0.00029848,7]
[423286589,1780026659000,-317.52199663,0.00029848,7]
[423286587,1780026659000,-187.37709945,0.00029848,7]
[423286586,1780026659000,-332.05817792,0.00029848,7]
[423286591,1780026659000,-220.18842306,0.00029848,7]
[423286588,1780026659000,-176.47010589,0.00029848,7]
[423286596,1780026659000,-318.17527444,0.00029848,7]
[423286597,1780026659000,-434.89067663,0.00029848,7]
[423286599,1780026659000,-193.34322,0.00029848,7]
[423286598,1780026659000,-399.40137145,0.00029848,7]
[423286607,1780026659000,-667.030463,0.00029848,7]
[423286590,1780026659000,-309.05424705,0.00029848,7]
[423286602,1780026659000,-193.34322,0.00029848,7]
[423286608,1780026659000,-1154.137718,0.00029848,7]
[423286613,1780026659000,-1154.137718,0.00029848,7]
[423286601,1780026659000,-193.34322,0.00029848,7]
[423286610,1780026659000,-667.030463,0.00029848,7]
[423286614,1780026659000,-4419.815268,0.00029848,7]
[423286620,1780026659000,-674.088751,0.00029848,7]
[423286619,1780026659000,-674.088751,0.00029848,7]
[423286605,1780026659000,-1154.137718,0.00029848,7]
[423286603,1780026659000,-151.0,0.00029848,7]
[423286600,1780026659000,-193.34322,0.00029848,7]
[423286606,1780026659000,-151.0,0.00029848,7]
[423286604,1780026659000,-667.030463,0.00029848,7]
[423286609,1780026659000,-212.157236,0.00029848,7]
[423286672,1780026660000,-823.05928052,0.0003,120]
[423286676,1780026660000,-587.07945399,0.0003,4]
[423286669,1780026660000,-170.26281501,0.0003,120]
[423286670,1780026660000,-168.18712994,0.0003,120]
[423286668,1780026660000,-166.0,0.0003,120]
[423286675,1780026660000,-307.51392503,0.0003,120]
[423286674,1780026660000,-7579.55486501,0.0003,2]
[423286667,1780026660000,-650.62530258,0.0003,120]
[423286679,1780026660000,-170.0,0.0003,120]
[423286671,1780026660000,-1030.37964038,0.0003,120]
[423286677,1780026660000,-317.70280892,0.0003,120]
[423286678,1780026660000,-1953.26352426,0.0003,120]
[423286681,1780026660000,-368.30440275,0.0003,30]
[423286682,1780026660000,-1000.0,0.0003,2]
[423286663,1780026660000,-3000.0,0.00029919,60]
[423286680,1780026660000,-1996.74868718,0.0003,120]
[423286673,1780026660000,-165.0,0.0003,60]
[423286661,1780026660000,-168.0,0.00029911,120]
[423286655,1780026660000,-199.816827,0.000299,7]
[423286666,1780026660000,-225.60683322,0.0003,120]
[423286683,1780026660000,-1000.0,0.0003,2]
[423286649,1780026660000,-6580.74,0.000299,7]
[423286650,1780026660000,-3699.58,0.000299,7]
[423286647,1780026660000,-383.83921486,0.00029892,7]
[423286648,1780026660000,-6122.88172682,0.000299,2]
[423286651,1780026660000,-151.0,0.000299,7]
[423286653,1780026660000,-151.0,0.000299,7]
[423286646,1780026660000,-150.0,0.00029888,7]
[423286656,1780026660000,-151.0,0.000299,7]
[423286652,1780026660000,-151.0,0.000299,7]
[423286654,1780026660000,-151.0,0.000299,7]
[423286658,1780026660000,-151.0,0.000299,7]
[423286657,1780026660000,-151.0,0.000299,7]
[423286660,1780026660000,-152.0,0.00029909,20]
[423286664,1780026660000,-411.0,0.00029962,120]
[423286662,1780026660000,-169.55,0.00029912,3]
[423286659,1780026660000,-247.0,0.00029907,120]
[423286665,1780026660000,-241.3416332,0.0002999,2]
[423286685,1780026660000,-1850.5020644,0.0003,2]
[423286695,1780026660000,-3001.0,0.0003,3]
[423286686,1780026660000,-1123.88887539,0.0003,2]
[423286709,1780026660000,-948.0,0.00030075,7]
[423286710,1780026660000,-188.44606373,0.0003013,2]
[423286712,1780026660000,-304.31985215,0.0003013,120]
[423286714,1780026660000,-1580.39650594,0.0003013,120]
[423286713,1780026660000,-2484.12087459,0.0003013,120]
[423286711,1780026660000,-1733.69010518,0.0003013,30]
[423286715,1780026660000,-302.10647292,0.0003013,2]
[423286708,1780026660000,-685.0,0.0003006,120]
[423286716,1780026660000,-2000.0,0.0003013,2]
[423286719,1780026660000,-3996.42206029,0.0003013,120]
[423286722,1780026660000,-645.4828371,0.0003013,2]
[423286717,1780026660000,-1370.13857471,0.0003013,120]
[423286724,1780026660000,-300.0,0.0003013,30]
[423286721,1780026660000,-364.57,0.0003013,15]
[423286723,1780026660000,-205.34319924,0.0003013,2]
[423286684,1780026660000,-3000.0,0.0003,120]
[423286718,1780026660000,-1011.00201365,0.0003013,120]
[423286706,1780026660000,-994.04,0.00030046,7]
[423286720,1780026660000,-1093.0549929,0.0003013,2]
[423286705,1780026660000,-168.0,0.00030039,120]
[423286687,1780026660000,-1000.0,0.0003,2]
[423286707,1780026660000,-1087.63,0.00030046,7]
[423286688,1780026660000,-526.76267861,0.0003,30]
[423286689,1780026660000,-165.9589188,0.0003,2]
[423286690,1780026660000,-312.12756278,0.0003,5]
[423286693,1780026660000,-700.0,0.0003,90]
[423286694,1780026660000,-502.529,0.0003,120]
[423286698,1780026660000,-650.0,0.0003,2]
[423286697,1780026660000,-516.23044344,0.0003,30]
[423286691,1780026660000,-1020.46,0.0003,30]
[423286692,1780026660000,-5040.12346578,0.0003,4]
[423286699,1780026660000,-200.0,0.0003,2]
[423286702,1780026660000,-200.0,0.0003,2]
[423286703,1780026660000,-1500.0,0.0003,2]
[423286701,1780026660000,-194.674,0.0003,22]
[423286696,1780026660000,-4449.37390831,0.0003,120]
[423286704,1780026660000,-200.0,0.0003,2]
[423286700,1780026660000,-200.0,0.0003,2]
[423286750,1780026661000,-15803.77377491,0.000302,2]
[423286762,1780026661000,-1108.3,0.00030384,120]
[423286757,1780026661000,-1048.0,0.0003027,7]
[423286755,1780026661000,-1012.3,0.0003027,7]
[423286752,1780026661000,-10000.0,0.00030205,2]
[423286749,1780026661000,-1606.169999,0.000302,2]
[423286748,1780026661000,-3417.7674508,0.00030149,2]
[423286758,1780026661000,-150.0,0.00030328,7]
[423286753,1780026661000,-419.0,0.0003021,120]
[423286759,1780026661000,-292.5,0.00030329,2]
[423286765,1780026661000,-1272.0,0.00030384,2]
[423286756,1780026661000,-1072.41,0.0003027,7]
[423286761,1780026661000,-150.0,0.00030341,2]
[423286760,1780026661000,-195.7,0.00030332,120]
[423286764,1780026661000,-928.0,0.00030384,2]
[423286763,1780026661000,-3549.0,0.00030384,2]
[423286766,1780026661000,-1225.0,0.00030384,2]
[423286767,1780026661000,-932.0,0.00030384,2]
[423286768,1780026661000,-6066.0,0.00030384,2]
[423286751,1780026661000,-207.93001677,0.000302,120]
[423286754,1780026661000,-8056.7,0.00030239,2]
[423286747,1780026661000,-149157.9408021,0.00030149,2]
[423286733,1780026661000,-151.0,0.00030137,7]
[423286745,1780026661000,-500.0,0.00030137,7]
[423286770,1780026661000,-500.1,0.00030453,2]
[423286725,1780026661000,-3495.09634322,0.0003013,120]
[423286729,1780026661000,-1388.0,0.00030137,120]
[423286730,1780026661000,-164.1962319,0.00030137,120]
[423286732,1780026661000,-1085.66366193,0.00030137,120]
[423286734,1780026661000,-151.0,0.00030137,7]
[423286731,1780026661000,-4195.26,0.00030137,120]
[423286728,1780026661000,-1520.0,0.00030137,120]
[423286727,1780026661000,-425.0,0.00030137,120]
[423286746,1780026661000,-251.0,0.00030142,120]
[423286726,1780026661000,-317.55980219,0.00030135,120]
[423286741,1780026661000,-2326.98902491,0.00030137,30]
[423286740,1780026661000,-1115.48,0.00030137,43]
[423286737,1780026661000,-199.10707526,0.00030137,7]
[423286738,1780026661000,-398.21415052,0.00030137,7]
[423286743,1780026661000,-1108.3,0.00030137,120]
[423286739,1780026661000,-1003.99,0.00030137,2]
[423286736,1780026661000,-200.0,0.00030137,2]
[423286742,1780026661000,-184.73723899,0.00030137,120]
[423286744,1780026661000,-617.44877499,0.00030137,2]
[423286735,1780026661000,-959.03,0.00030137,2]
[423286772,1780026661000,-500.1,0.00030453,2]
[423286769,1780026661000,-600.0,0.00030411,120]
[423286803,1780026661000,-796.63676612,0.00030736,7]
[423286798,1780026661000,-333.59735872,0.00030726,7]
[423286800,1780026661000,-380.91839503,0.00030736,7]
[423286799,1780026661000,-576.05673982,0.00030734,7]
[423286802,1780026661000,-223.86652539,0.00030736,7]
[423286805,1780026661000,-1070.3427944,0.00030736,7]
[423286804,1780026661000,-166.82624182,0.00030736,7]
[423286806,1780026661000,-162.91801101,0.00030736,7]
[423286808,1780026661000,-280.9150415,0.00030736,2]
[423286807,1780026661000,-204.36468012,0.00030736,7]
[423286796,1780026661000,-542.56201413,0.00030725,7]
[423286809,1780026661000,-293.83384898,0.00030736,2]
[423286812,1780026661000,-562.92890813,0.00030736,7]
[423286811,1780026661000,-492.58758887,0.00030736,7]
[423286813,1780026661000,-154.23338563,0.00030736,7]
[423286815,1780026661000,-455.94284966,0.00030736,7]
[423286814,1780026661000,-250.60843981,0.00030736,7]
[423286817,1780026661000,-547.43932979,0.00030736,2]
[423286818,1780026661000,-302.02580943,0.00030736,7]
[423286816,1780026661000,-985.06668621,0.00030736,7]
[423286771,1780026661000,-500.1,0.00030453,2]
[423286810,1780026661000,-259.08302314,0.00030736,2]
[423286801,1780026661000,-944.10265645,0.00030736,7]
[423286797,1780026661000,-521.75034155,0.00030726,7]
[423286792,1780026661000,-10488.45,0.00030683,7]
[423286774,1780026661000,-500.1,0.00030453,3]
[423286773,1780026661000,-500.1,0.00030453,3]
[423286775,1780026661000,-500.1,0.00030453,3]
[423286776,1780026661000,-500.1,0.00030453,3]
[423286778,1780026661000,-542.90350792,0.00030453,3]
[423286777,1780026661000,-500.1,0.00030453,3]
[423286781,1780026661000,-152.0,0.00030486,21]
[423286779,1780026661000,-1369.0,0.00030467,120]
[423286782,1780026661000,-224.23280446,0.00030486,5]
[423286795,1780026661000,-559.30085767,0.00030715,7]
[423286784,1780026661000,-160.0,0.000305,120]
[423286780,1780026661000,-2318.0,0.00030473,3]
[423286785,1780026661000,-6580.74,0.000305,7]
[423286793,1780026661000,-3132.82360499,0.000307,120]
[423286783,1780026661000,-728.0,0.00030497,120]
[423286789,1780026661000,-1527.99,0.00030628,30]
[423286787,1780026661000,-500.0,0.00030514,20]
[423286794,1780026661000,-188.44606373,0.00030709,2]
[423286791,1780026661000,-370.13616685,0.0003064,14]
[423286790,1780026661000,-948.0,0.00030629,7]
[423286786,1780026661000,-3699.58,0.000305,7]
[423286788,1780026661000,-1108.3,0.00030548,120]
[423286835,1780026662000,-292.23308746,0.00030736,7]
[423286825,1780026662000,-577.58768195,0.00030736,7]
[423286836,1780026662000,-597.32122579,0.00030736,7]
[423286837,1780026662000,-493.00062437,0.00030736,7]
[423286827,1780026662000,-525.14358569,0.00030736,7]
[423286823,1780026662000,-463.70757908,0.00030736,7]
[423286824,1780026662000,-293.91397963,0.00030736,7]
[423286831,1780026662000,-570.99272983,0.00030736,7]
[423286826,1780026662000,-152.20182317,0.00030736,7]
[423286822,1780026662000,-243.4795262,0.00030736,7]
[423286820,1780026662000,-475.86844961,0.00030736,7]
[423286821,1780026662000,-194.85970635,0.00030736,7]
[423286819,1780026662000,-220.71003072,0.00030736,7]
[423286833,1780026662000,-155.22549886,0.00030736,7]
[423286828,1780026662000,-482.26722397,0.00030736,7]
[423286834,1780026662000,-458.24178159,0.00030736,7]
[423286844,1780026662000,-459.06794687,0.00030737,7]
[423286838,1780026662000,-591.43456747,0.00030736,7]
[423286830,1780026662000,-159.42494355,0.00030736,7]
[423286848,1780026662000,-460.32393047,0.00030737,7]
[423286852,1780026662000,-219.92388746,0.00030737,7]
[423286850,1780026662000,-154.4990258,0.00030737,7]
[423286849,1780026662000,-495.86351786,0.00030737,7]
[423286843,1780026662000,-150.7777502,0.00030737,7]
[423286846,1780026662000,-228.99814346,0.00030737,7]
[423286847,1780026662000,-348.22935332,0.00030737,7]
[423286851,1780026662000,-249.54806209,0.00030737,7]
[423286841,1780026662000,-573.35933622,0.00030736,7]
[423286840,1780026662000,-337.38000991,0.00030736,7]
[423286845,1780026662000,-203.0969762,0.00030737,7]
[423286839,1780026662000,-516.54138783,0.00030736,7]
[423286842,1780026662000,-451.49394837,0.00030737,7]
[423286829,1780026662000,-606.76483683,0.00030736,7]
[423286832,1780026662000,-511.2354123,0.00030736,7]
[423286891,1780026663000,-305.10758997,0.00030767,7]
[423286900,1780026663000,-3749.0,0.0003078,30]
[423286889,1780026663000,-390.19591139,0.00030767,7]
[423286888,1780026663000,-277.31540027,0.00030767,7]
[423286899,1780026663000,-1131.0,0.0003078,30]
[423286877,1780026663000,-558.21405716,0.00030748,7]
[423286884,1780026663000,-207.00428148,0.00030767,7]
[423286887,1780026663000,-508.23205799,0.00030767,7]
[423286881,1780026663000,-155.38078746,0.00030767,7]
[423286892,1780026663000,-231.39465645,0.00030767,2]
[423286886,1780026663000,-162.01615878,0.00030767,7]
[423286883,1780026663000,-155.78222317,0.00030767,7]
[423286897,1780026663000,-3624.0,0.0003078,30]
[423286903,1780026663000,-1566.0,0.00030794,30]
[423286898,1780026663000,-1198.0,0.0003078,30]
[423286896,1780026663000,-3978.0,0.0003078,30]
[423286893,1780026663000,-348.95046792,0.00030771,7]
[423286890,1780026663000,-530.49192663,0.00030767,7]
[423286894,1780026663000,-495.07104896,0.00030771,7]
[423286902,1780026663000,-575.7588223,0.00030783,7]
[423286901,1780026663000,-1004.67,0.0003078,7]
[423286912,1780026663000,-155.0,0.00030834,3]
[423286904,1780026663000,-2007.0,0.00030794,30]
[423286910,1780026663000,-2729.0,0.00030805,30]
[423286882,1780026663000,-173.96079951,0.00030767,7]
[423286905,1780026663000,-1108.3,0.00030795,120]
[423286895,1780026663000,-456.85404581,0.00030771,7]
[423286885,1780026663000,-245.72979678,0.00030767,7]
[423286918,1780026663000,-170.0,0.00031,120]
[423286878,1780026663000,-560.62355696,0.00030754,5]
[423286907,1780026663000,-1371.0,0.00030805,30]
[423286853,1780026663000,-484.55433987,0.00030737,7]
[423286854,1780026663000,-626.51077512,0.00030737,7]
[423286856,1780026663000,-617.43178064,0.00030737,7]
[423286857,1780026663000,-370.54361442,0.00030737,2]
[423286864,1780026663000,-463.58137057,0.00030737,7]
[423286862,1780026663000,-352.94021178,0.00030737,7]
[423286859,1780026663000,-531.04123617,0.00030737,7]
[423286855,1780026663000,-201.40377158,0.00030737,7]
[423286858,1780026663000,-165.50411573,0.00030737,7]
[423286863,1780026663000,-476.28299495,0.00030737,7]
[423286861,1780026663000,-374.75419891,0.00030737,7]
[423286880,1780026663000,-157.54314749,0.00030767,7]
[423286860,1780026663000,-498.08726688,0.00030737,7]
[423286872,1780026663000,-477.26291166,0.00030737,7]
[423286865,1780026663000,-152.41257321,0.00030737,7]
[423286871,1780026663000,-486.11120137,0.00030737,7]
[423286870,1780026663000,-622.37965304,0.00030737,7]
[423286873,1780026663000,-652.33601494,0.00030737,7]
[423286867,1780026663000,-532.06035044,0.00030737,7]
[423286868,1780026663000,-400.43133027,0.00030737,7]
[423286869,1780026663000,-162.21557078,0.00030737,7]
[423286875,1780026663000,-599.10205717,0.00030737,7]
[423286874,1780026663000,-275.68661596,0.00030737,7]
[423286876,1780026663000,-3000.0,0.00030741,60]
[423286879,1780026663000,-305.84038809,0.00030756,5]
[423286866,1780026663000,-440.37684611,0.00030737,7]
[423286909,1780026663000,-5630.0,0.00030805,30]
[423286948,1780026663000,-1258.80354193,0.00031329,7]
[423286911,1780026663000,-727.0,0.00030805,30]
[423286936,1780026663000,-330.046217,0.000312,7]
[423286941,1780026663000,-695.66712206,0.00031319,7]
[423286946,1780026663000,-167.46027441,0.00031329,7]
[423286943,1780026663000,-768.0756531,0.00031328,7]
[423286945,1780026663000,-571.37759255,0.00031329,7]
[423286942,1780026663000,-500.39603808,0.00031319,7]
[423286949,1780026663000,-447.73305079,0.00031329,7]
[423286951,1780026663000,-1427.12372587,0.00031329,7]
[423286953,1780026663000,-429.78383387,0.00031329,7]
[423286952,1780026663000,-449.820445,0.00031329,7]
[423286906,1780026663000,-250.0,0.000308,30]
[423286950,1780026663000,-1062.18235483,0.00031329,7]
[423286940,1780026663000,-723.41601884,0.00031318,7]
[423286957,1780026663000,-408.72936025,0.00031329,7]
[423286958,1780026663000,-411.3893685,0.00031329,7]
[423286955,1780026663000,-325.83602201,0.00031329,7]
[423286959,1780026663000,-561.83008301,0.00031329,2]
[423286961,1780026663000,-346.32503532,0.00031329,7]
[423286967,1780026663000,-212.70991586,0.00031329,7]
[423286960,1780026663000,-587.66769796,0.00031329,2]
[423286968,1780026663000,-170.10002111,0.00031329,7]
[423286962,1780026663000,-518.16604628,0.00031329,2]
[423286963,1780026663000,-342.65278809,0.00031329,7]
[423286964,1780026663000,-656.78345183,0.00031329,7]
[423286965,1780026663000,-221.95526953,0.00031329,7]
[423286966,1780026663000,-750.57187751,0.00031329,7]
[423286956,1780026663000,-384.39172351,0.00031329,7]
[423286944,1780026663000,-160.45204036,0.00031329,7]
[423286954,1780026663000,-329.54643824,0.00031329,7]